fUSD/lending_fUSD_20250504
["ID","MTS","AMOUNT","RATE_DAILY","PERIOD"]
[359866467,1746384632736,-450.0,0.00019984,2]
[359866469,1746384632746,-450.0,0.00019984,2]
[359866471,1746384632756,-450.0,0.00019984,2]
[359866473,1746384632765,-450.0,0.00019984,2]
[359866475,1746384632775,-450.0,0.00019984,2]
[359866477,1746384632786,-450.0,0.00019984,2]
[359866479,1746384632796,-450.0,0.00019984,2]
[359866481,1746384632806,-450.0,0.00019984,2]
[359866483,1746384632815,-450.0,0.00019984,2]
[359866485,1746384632824,-450.0,0.00019984,2]
[359866487,1746384632833,-450.0,0.00019984,2]
[359866489,1746384632843,-450.0,0.00019984,2]
[359866491,1746384632852,-58.27433299,0.00019984,2]
[359866492,1746384632870,-391.72566701,0.00019984,2]
[359866493,1746384632880,-450.0,0.00019984,2]
[359866494,1746384632889,-450.0,0.00019984,2]
[359866495,1746384632899,-450.0,0.00019984,2]
[359866496,1746384632908,-450.0,0.00019984,2]
[359866497,1746384632918,-450.0,0.00019984,2]
[359866498,1746384632928,-450.0,0.00019984,2]
[359866499,1746384632938,-450.0,0.00019984,2]
[359866500,1746384632948,-450.0,0.00019984,2]
[359866501,1746384632957,-450.0,0.00019984,2]
[359866502,1746384632967,-450.0,0.00019984,2]
[359866503,1746384632977,-450.0,0.00019984,2]
[359866504,1746384632986,-450.0,0.00019984,2]
[359866505,1746384632996,-450.0,0.00019984,2]
[359866506,1746384633005,-450.0,0.00019984,2]
[359866507,1746384633015,-450.0,0.00019984,2]
[359866508,1746384633025,-450.0,0.00019984,2]
[359866509,1746384633035,-450.0,0.00019984,2]
[359866510,1746384633044,-450.0,0.00019984,2]
[359866511,1746384633053,-450.0,0.00019984,2]
[359866512,1746384633063,-450.0,0.00019984,2]
[359866513,1746384633072,-450.0,0.00019984,2]
[359866514,1746384633082,-450.0,0.00019984,2]
[359866515,1746384633092,-450.0,0.00019984,2]
[359866516,1746384633102,-450.0,0.00019984,2]
[359866517,1746384633112,-450.0,0.00019984,2]
[359866518,1746384633122,-450.0,0.00019984,2]
[359866519,1746384633131,-450.0,0.00019984,2]
[359866520,1746384633141,-450.0,0.00019984,2]
[359866521,1746384633151,-450.0,0.00019984,2]
[359866522,1746384633161,-450.0,0.00019984,2]
[359866523,1746384633171,-450.0,0.00019984,2]
[359866524,1746384633181,-450.0,0.00019984,2]
[359866525,1746384633191,-450.0,0.00019984,2]
[359866526,1746384633201,-450.0,0.00019984,2]
[359866527,1746384633210,-450.0,0.00019984,2]
[359866528,1746384633221,-450.0,0.00019984,2]
[359866529,1746384633231,-450.0,0.00019984,2]
[359866530,1746384633240,-450.0,0.00019984,2]
[359866531,1746384633251,-450.0,0.00019984,2]
[359866532,1746384633261,-450.0,0.00019984,2]
[359866533,1746384633270,-450.0,0.00019984,2]
[359866534,1746384633280,-450.0,0.00019984,2]
[359866535,1746384633291,-321.35509598,0.00019984,2]
[359866536,1746384633302,-278.61413904,0.00019984,2]
[359866537,1746384633317,-171.38586096,0.00019984,2]
[359866538,1746384633327,-450.0,0.00019984,2]
[359866539,1746384633338,-450.0,0.00019984,2]
[359866540,1746384633349,-450.0,0.00019984,2]
[359866541,1746384633359,-450.0,0.00019984,2]
[359866542,1746384633369,-233.95533194,0.00019984,2]
[359866543,1746384633382,-266.79466806,0.00019984,2]
[359866544,1746384633393,-450.0,0.00019984,2]
[359866545,1746384633403,-450.0,0.00019984,2]
[359866546,1746384633413,-154.52533149,0.00019984,2]
[359866557,1746384637932,-450.0,0.00019984,2]
[359866558,1746384637943,-450.0,0.00019984,2]
[359866559,1746384637952,-579.81197628,0.00019984,2]
[359866560,1746384637964,-356.80802372,0.00019984,2]
[359866561,1746384637975,-514.0,0.00019984,2]
[359866562,1746384637984,-104.12197628,0.00019984,2]
[359866563,1746384637996,-345.87802372,0.00019984,2]
[359866564,1746384638006,-450.0,0.00019984,2]
[359866565,1746384638017,-450.0,0.00019984,2]
[359866566,1746384638026,-74.57197628,0.00019984,2]
[359866592,1746384639823,-167.0,0.00019948,2]
[359866593,1746384639833,-375.42802372,0.00019984,2]
[359866594,1746384639844,-489.84,0.00019984,2]
[359866595,1746384639853,-450.0,0.00019984,2]
[359866596,1746384639863,-450.0,0.00019984,2]
[359866597,1746384639875,-450.0,0.00019984,2]
[359866598,1746384639885,-450.0,0.00019984,2]
[359866599,1746384639894,-450.0,0.00019984,2]
[359866600,1746384639903,-450.0,0.00019984,2]
[359866601,1746384639913,-450.0,0.00019984,2]
[359866602,1746384639923,-450.0,0.00019984,2]
[359866603,1746384639933,-450.0,0.00019984,2]
[359866604,1746384639942,-502.24,0.00019984,2]
[359866605,1746384639951,-590.12,0.00019984,2]
[359866606,1746384639961,-450.0,0.00019984,2]
[359866607,1746384639971,-918.98,0.00019984,2]
[359866608,1746384639982,-450.0,0.00019984,2]
[359866609,1746384639991,-192.51474817,0.00019984,2]
[359866622,1746384644360,-154.81019321,0.00019897,2]
[359866623,1746384644370,-686.425479,0.000199,2]
[359866624,1746384644416,-504.76511919,0.000199,2]
[359866625,1746384644427,-5892.81254805,0.000199,2]
[359866626,1746384644437,-257.48525183,0.00019984,2]
[359866627,1746384644447,-450.0,0.00019984,2]
[359866628,1746384644456,-450.0,0.00019984,2]
[359866629,1746384644466,-521.83,0.00019984,2]
[359866630,1746384644476,-450.0,0.00019984,2]
[359866631,1746384644485,-450.0,0.00019984,2]
[359866632,1746384644494,-420.21949226,0.00019984,2]
[359866633,1746384644503,-450.0,0.00019984,2]
[359866634,1746384644513,-450.0,0.00019984,2]
[359866635,1746384644522,-450.0,0.00019984,2]
[359866636,1746384644532,-450.0,0.00019984,2]
[359866637,1746384644541,-450.0,0.00019984,2]
[359866638,1746384644550,-861.77,0.00019984,2]
[359866640,1746384644559,-450.0,0.00019984,2]
[359866642,1746384644569,-450.0,0.00019984,2]
[359866643,1746384644578,-450.0,0.00019984,2]
[359866644,1746384644587,-527.97,0.00019984,2]
[359866645,1746384644596,-450.0,0.00019984,2]
[359866646,1746384644605,-450.0,0.00019984,2]
[359866647,1746384644614,-450.0,0.00019984,2]
[359866648,1746384644623,-450.0,0.00019984,2]
[359866649,1746384644632,-450.0,0.00019984,2]
[359866650,1746384644641,-450.0,0.00019984,2]
[359866651,1746384644650,-455.41718845,0.00019984,2]
[359866652,1746384644659,-738.960343,0.00019984,2]
[359866653,1746384644669,-450.0,0.00019984,2]
[359866654,1746384644678,-450.0,0.00019984,2]
[359866655,1746384644687,-450.0,0.00019984,2]
[359866656,1746384644697,-450.0,0.00019984,2]
[359866657,1746384644707,-450.0,0.00019984,2]
[359866658,1746384644721,-450.0,0.00019984,2]
[359866659,1746384644731,-450.0,0.00019984,2]
[359866660,1746384644740,-450.0,0.00019984,2]
[359866661,1746384644749,-450.0,0.00019984,2]
[359866662,1746384644758,-450.0,0.00019984,2]
[359866663,1746384644767,-565.663878,0.00019984,2]
[359866664,1746384644776,-450.0,0.00019984,2]
[359866665,1746384644786,-461.55,0.00019984,2]
[359866666,1746384644796,-333.92,0.00019984,2]
[359866667,1746384644806,-450.0,0.00019984,2]
[359866668,1746384644815,-450.0,0.00019984,2]
[359866669,1746384644825,-450.0,0.00019984,2]
[359866670,1746384644834,-500.0,0.00019984,2]
[359866671,1746384644844,-450.0,0.00019985,2]
[359866672,1746384644854,-151.0,0.00019985,2]
[359866673,1746384644863,-450.0,0.00019985,2]
[359866674,1746384644873,-151.0,0.00019985,2]
[359866675,1746384644883,-524.37,0.00019985,2]
[359866676,1746384644892,-291.36,0.00019985,2]
[359866677,1746384644901,-450.0,0.00019985,2]
[359866678,1746384644911,-450.0,0.00019985,2]
[359866679,1746384644920,-266.93409531,0.00019985,2]
[359866680,1746384644930,-450.0,0.00019985,2]
[359866681,1746384644940,-450.0,0.00019985,2]
[359866682,1746384644951,-511.62826002,0.00019985,2]
[359866683,1746384644960,-450.0,0.00019985,2]
[359866684,1746384644970,-250.0,0.00019985,2]
[359866685,1746384644979,-450.0,0.00019985,2]
[359866686,1746384644989,-450.0,0.00019985,2]
[359866687,1746384644999,-151.0,0.00019985,2]
[359866688,1746384645009,-450.0,0.00019985,2]
[359866689,1746384645019,-450.0,0.00019985,2]
[359866690,1746384645029,-438.63,0.00019985,2]
[359866691,1746384645039,-450.0,0.00019985,2]
[359866692,1746384645048,-253.041188,0.00019985,2]
[359866693,1746384645057,-450.0,0.00019985,2]
[359866694,1746384645069,-450.0,0.00019985,2]
[359866695,1746384645079,-450.0,0.00019985,2]
[359866696,1746384645088,-450.0,0.00019985,2]
[359866697,1746384645099,-450.0,0.00019985,2]
[359866698,1746384645108,-280.90003842,0.00019985,2]
[359866699,1746384645119,-593.62,0.00019985,2]
[359866700,1746384645129,-514.7867556,0.00019985,2]
[359866701,1746384645139,-450.0,0.00019985,2]
[359866702,1746384645149,-450.0,0.00019985,2]
[359866703,1746384645158,-450.0,0.00019985,2]
[359866704,1746384645169,-450.0,0.00019985,2]
[359866705,1746384645179,-450.0,0.00019985,2]
[359866706,1746384645189,-450.0,0.00019985,2]
[359866707,1746384645199,-378.05470364,0.00019985,2]
[359866708,1746384645208,-450.0,0.00019985,2]
[359866709,1746384645218,-450.0,0.00019985,2]
[359866710,1746384645227,-984.64,0.00019985,2]
[359866711,1746384645238,-450.0,0.00019985,2]
[359866712,1746384645248,-450.0,0.00019985,2]
[359866713,1746384645258,-460.02,0.00019985,2]
[359866714,1746384645268,-450.0,0.00019985,2]
[359866715,1746384645278,-7799.24,0.00019985,2]
[359866716,1746384645288,-450.0,0.00019985,2]
[359866717,1746384645299,-450.0,0.00019985,2]
[359866718,1746384645308,-450.0,0.00019985,2]
[359866719,1746384645318,-450.0,0.00019985,2]
[359866720,1746384645328,-461.33,0.00019985,2]
[359866721,1746384645337,-450.0,0.00019985,2]
[359866722,1746384645347,-450.0,0.00019985,2]
[359866723,1746384645356,-567.81,0.00019985,2]
[359866724,1746384645367,-450.0,0.00019985,2]
[359866725,1746384645377,-450.0,0.00019985,2]
[359866726,1746384645387,-450.0,0.00019985,2]
[359866727,1746384645396,-450.0,0.00019985,2]
[359866728,1746384645406,-450.0,0.00019985,2]
[359866729,1746384645416,-1253.6813173,0.00019985,2]
[359866730,1746384645427,-450.0,0.00019985,2]
[359866731,1746384645437,-564.8,0.00019985,2]
[359866732,1746384645447,-151.0,0.00019985,2]
[359866733,1746384645456,-495.03,0.00019985,2]
[359866734,1746384645466,-450.0,0.00019985,2]
[359866735,1746384645476,-450.0,0.00019985,2]
[359866736,1746384645486,-450.0,0.00019985,2]
[359866737,1746384645496,-450.0,0.00019985,2]
[359866738,1746384645506,-450.0,0.00019985,2]
[359866739,1746384645515,-450.0,0.00019985,2]
[359866740,1746384645525,-544.29,0.00019985,2]
[359866741,1746384645534,-269.82,0.00019985,2]
[359866742,1746384645543,-450.0,0.00019985,2]
[359866743,1746384645553,-450.0,0.00019985,2]
[359866744,1746384645563,-450.0,0.00019985,2]
[359866745,1746384645572,-385.9639232,0.00019985,2]
[359866746,1746384645611,-450.0,0.00019985,2]
[359866747,1746384645621,-450.0,0.00019985,2]
[359866748,1746384645629,-38376.8499359,0.00019985,2]
[359866749,1746384645639,-551.46,0.00019985,2]
[359866750,1746384645649,-897.6,0.00019985,2]
[359866751,1746384645659,-250.0,0.00019986,2]
[359866752,1746384645670,-151.0,0.00019986,2]
[359866753,1746384645679,-151.0,0.00019986,2]
[359866754,1746384645688,-151.0,0.00019986,2]
[359866755,1746384645698,-151.0,0.00019986,2]
[359866756,1746384645708,-173.933036,0.00019986,2]
[359866757,1746384645721,-150.1916411,0.00019986,2]
[359866758,1746384645731,-150.0,0.00019986,2]
[359866759,1746384645740,-151.0,0.00019986,2]
[359866760,1746384645749,-151.0,0.00019986,2]
[359866761,1746384645759,-497.8939098,0.00019986,2]
[359866762,1746384645768,-1213.3753592,0.00019986,2]
[359866763,1746384645777,-1173.0694011,0.00019986,2]
[359866764,1746384645787,-1132.763443,0.00019986,2]
[359866765,1746384645798,-1092.4574849,0.00019986,2]
[359866766,1746384645807,-1052.1515268,0.00019986,2]
[359866767,1746384645816,-151.0,0.00019986,2]
[359866768,1746384645826,-151.0,0.00019986,2]
[359866769,1746384645835,-37182.0855926,0.00019986,2]
[359866770,1746384645845,-35987.3212493,0.00019986,2]
[359866771,1746384645855,-34792.5569061,0.00019986,2]
[359866772,1746384645864,-11606.0987086,0.00019986,2]
[359866773,1746384646044,-5584.96030861,0.00019986,2]
[359866774,1746384646198,-3160.0,0.00019986,2]
[359866775,1746384646209,-478.97811715,0.00019986,2]
[359866776,1746384646221,-551.02000832,0.00019986,2]
[359866782,1746384802042,270.0,0.00019501,2]
[359866783,1746385112867,719.0,0.000193,2]
[359866784,1746385145708,1000.0,0.00018995,2]
[359866785,1746385208415,5570.0,0.000194,3]
[359866786,1746385233705,500.0,0.00027945,30]
[359866787,1746385234313,500.0,0.00029315,30]
[359866788,1746385337895,152.0,0.0003,30]
[359866789,1746385599118,725.48,0.00017063,2]
[359866790,1746385599316,725.48,0.00019327,2]
[359866797,1746385686144,250.0,0.00017,2]
[359866798,1746385687249,300.0,0.00019,2]
[359866799,1746385720342,-478.36897376,0.000196,2]
[359866800,1746385720368,-200.0,0.00019625,2]
[359866801,1746385720391,-250.0,0.0001965,2]
[359866802,1746385720416,-200.0,0.00019731,2]
[359866803,1746385720440,-196.7997508,0.00019799,2]
[359866804,1746385720464,-1200.0,0.00019803,2]
[359866805,1746385720488,-300.0,0.00019803,2]
[359866806,1746385720512,-300.0,0.00019803,2]
[359866807,1746385720538,-22350.83127544,0.00019804,2]
[359866822,1746385831882,-157.4398006,0.00019799,2]
[359866823,1746385831892,-300.0,0.00019803,2]
[359866824,1746385831902,-300.0,0.00019803,2]
[359866825,1746385831911,-1200.0,0.00019803,2]
[359866826,1746385831921,-300.0,0.00019803,2]
[359866827,1746385831930,-174.85728494,0.00019803,2]
[359866828,1746385831939,-7517.72974151,0.00019804,2]
[359866829,1746385832040,-605.7001952,0.00019804,2]
[359866830,1746385832051,-701.38004785,0.00019804,2]
[359866831,1746385832146,-20959.28110402,0.00019804,2]
[359866869,1746385833782,500.0,0.00027945,30]
[359866870,1746385834024,500.0,0.00029315,30]
[359866876,1746385837772,-3303.16733092,0.00019804,2]
[359866877,1746385837783,-4152.76677269,0.00019804,2]
[359866878,1746385838033,-3895.83733095,0.00019804,2]
[359867071,1746385840135,-1074.08327175,0.00019804,2]
[359867073,1746385840147,-496.13217264,0.00019804,2]
[359867105,1746385840451,-10.69689753,0.00019804,2]
[359867190,1746385843011,-7727.56289246,0.00019804,2]
[359867191,1746385843022,-207.4,0.00019888,2]
[359867192,1746385843032,-684.25335091,0.00019896,2]
[359867193,1746385843042,-176.508152,0.00019899,2]
[359867194,1746385843052,-154.81019321,0.00019899,2]
[359867195,1746385843061,-176.508152,0.00019899,2]
[359867196,1746385843071,-176.508152,0.000199,2]
[359867197,1746385843082,-176.508152,0.000199,2]
[359867198,1746385843091,-7244.47201124,0.000199,2]
[359867199,1746385843102,-500.0,0.00019945,2]
[359867200,1746385843112,-273.63006552,0.00019948,2]
[359867201,1746385843122,-181.018,0.00019948,2]
[359867202,1746385843131,-878.0,0.0001995,2]
[359867203,1746385843141,-961.61063191,0.0001995,2]
[359867216,1746385845898,-178.38936809,0.0001995,2]
[359867217,1746385845907,-797.0,0.00019955,2]
[359867218,1746385845917,-550.0,0.00019955,2]
[359867219,1746385845927,-581.0,0.00019955,2]
[359867220,1746385845936,-1451.0,0.00019955,2]
[359867221,1746385845945,-915.0,0.00019955,2]
[359867222,1746385845955,-500.0,0.00019973,2]
[359867223,1746385845965,-500.0,0.00019973,2]
[359867224,1746385845975,-500.0,0.00019973,2]
[359867225,1746385845984,-500.0,0.00019973,2]
[359867226,1746385845995,-500.0,0.00019973,2]
[359867227,1746385846004,-507.301,0.00019974,2]
[359867228,1746385846014,-450.0,0.00019984,2]
[359867229,1746385846023,-450.0,0.00019985,2]
[359867230,1746385846033,-487.63,0.00019985,2]
[359867231,1746385846042,-450.0,0.00019985,2]
[359867232,1746385846051,-450.0,0.00019985,2]
[359867233,1746385846060,-450.0,0.00019985,2]
[359867234,1746385846069,-450.0,0.00019985,2]
[359867235,1746385846079,-450.0,0.00019985,2]
[359867236,1746385846088,-412.9824213,0.00019985,2]
[359867237,1746385846098,-8241.2703442,0.00019985,2]
[359867238,1746385846107,-200.0,0.00019986,2]
[359867239,1746385846117,-200.0,0.00019986,2]
[359867240,1746385846126,-151.0,0.00019986,2]
[359867241,1746385846135,-151.0,0.00019986,2]
[359867242,1746385846145,-397.746759,0.00019986,2]
[359867243,1746385846155,-382.5110967,0.00019986,2]
[359867244,1746385846164,-153.27928381,0.00019986,2]
[359867245,1746385846176,-213.99615049,0.00019986,2]
[359867246,1746385846186,-352.039772,0.00019986,2]
[359867247,1746385846195,-336.8041097,0.00019986,2]
[359867248,1746385846205,-150.0,0.00019986,2]
[359867249,1746385846214,-4295.15996781,0.00019986,2]
[359867250,1746385846265,-1052.07733032,0.00019986,2]
[359867251,1746385846276,-542.77500066,0.00019986,2]
[359867256,1746385904508,3000.0,0.0003,30]
[359867257,1746386316065,1000.0,0.00018928,2]
[359867258,1746386437155,500.0,0.00027945,30]
[359867259,1746386437376,500.0,0.00029315,30]
[359867260,1746386649714,652.93,0.00017055,2]
[359867261,1746386649950,652.93,0.00019319,2]
[359867279,1746387032158,-157.4398006,0.00019799,2]
[359867280,1746387032169,-142.5601994,0.00019813,2]
[359867343,1746387038047,-57.4398006,0.00019813,2]
[359867344,1746387038057,-2000.0,0.00019826,2]
[359867345,1746387038067,-200.0,0.00019826,2]
[359867346,1746387038076,-200.0,0.0001986,2]
[359867347,1746387038085,-207.4,0.00019884,2]
[359867348,1746387038094,-1200.0,0.00019889,2]
[359867349,1746387038104,-300.0,0.00019889,2]
[359867350,1746387038113,-300.0,0.00019889,2]
[359867351,1746387038122,-5113.22092508,0.0001989,2]
[359867352,1746387038315,-1244.75246342,0.0001989,2]
[359867358,1746387040213,-862.544646,0.0001989,2]
[359867359,1746387040268,-177.6267895,0.0001989,2]
[359867360,1746387040277,-1000.0,0.00019896,2]
[359867361,1746387040287,-2041.67546448,0.00019896,2]
[359867362,1746387040296,-2041.67546447,0.00019896,2]
[359867363,1746387040305,-1407.6815,0.00019897,2]
[359867364,1746387040315,-2041.67546447,0.00019897,2]
[359867365,1746387040324,-1986.5085,0.00019897,2]
[359867366,1746387040333,-2041.67546447,0.00019897,2]
[359867367,1746387040342,-2041.67546447,0.00019898,2]
[359867368,1746387040352,-349.62158758,0.00019898,2]
[359867369,1746387040362,-2041.67546447,0.00019898,2]
[359867370,1746387040371,-225.0,0.00019898,2]
[359867371,1746387040380,-349.62158758,0.00019899,2]
[359867372,1746387040389,-2041.67546447,0.00019899,2]
[359867373,1746387040398,-168.4286354,0.00019899,2]
[359867374,1746387040408,-185.42258023,0.00019899,2]
[359867375,1746387040417,-349.62158758,0.00019899,2]
[359867376,1746387040426,-2041.67546447,0.00019899,2]
[359867377,1746387040435,-2041.67546447,0.000199,2]
[359867378,1746387040445,-185.42258022,0.000199,2]
[359867379,1746387040454,-2041.67546447,0.000199,2]
[359867380,1746387040463,-7002.98961073,0.000199,2]
[359867381,1746387040472,-405.841,0.00019905,2]
[359867382,1746387040482,-1451.0,0.00019968,2]
[359867383,1746387040491,-550.0,0.00019968,2]
[359867384,1746387040500,-581.0,0.00019968,2]
[359867385,1746387040509,-915.0,0.00019968,2]
[359867386,1746387040519,-1300.0,0.00019968,2]
[359867387,1746387040529,-925.0,0.00019968,2]
[359867388,1746387040538,-878.0,0.00019968,2]
[359867389,1746387040547,-1140.0,0.00019968,2]
[359867391,1746387040556,-500.0,0.00019973,2]
[359867392,1746387040566,-500.0,0.00019973,2]
[359867393,1746387040575,-500.0,0.00019973,2]
[359867394,1746387040584,-165.89,0.00019976,2]
[359867395,1746387040593,-165.89,0.00019976,2]
[359867396,1746387040603,-165.89,0.00019976,2]
[359867397,1746387040612,-500.0,0.00019984,2]
[359867398,1746387040622,-500.0,0.00019984,2]
[359867399,1746387040631,-500.0,0.00019984,2]
[359867400,1746387040641,-500.0,0.00019984,2]
[359867401,1746387040650,-500.0,0.00019984,2]
[359867402,1746387040659,-632.73371472,0.00019984,2]
[359867403,1746387040669,-15353.9044321,0.00019985,2]
[359867404,1746387040678,-450.0,0.00019985,2]
[359867405,1746387040687,-450.0,0.00019985,2]
[359867406,1746387040697,-450.0,0.00019985,2]
[359867407,1746387040706,-450.0,0.00019985,2]
[359867408,1746387040716,-450.0,0.00019985,2]
[359867409,1746387040726,-450.0,0.00019985,2]
[359867410,1746387040735,-450.0,0.00019985,2]
[359867411,1746387040745,-216.33075598,0.00019985,2]
[359867412,1746387040754,-322930.33216289,0.00019985,2]
[359867413,1746387040765,-151.0,0.00019986,2]
[359867414,1746387040774,-151.0,0.00019986,2]
[359867415,1746387040784,-14773.3366586,0.00019986,2]
[359867416,1746387040793,-14192.7688851,0.00019986,2]
[359867417,1746387040803,-13612.2011115,0.00019986,2]
[359867418,1746387040812,-13031.633338,0.00019986,2]
[359867419,1746387040822,-12451.0655645,0.00019986,2]
[359867420,1746387040831,-150.0,0.00019986,2]
[359867421,1746387040841,-150.0,0.00019986,2]
[359867422,1746387040851,-218.49578883,0.00019986,2]
[359867423,1746387040860,-500.0,0.00019986,2]
[359867424,1746387040869,-866.14809866,0.00019986,2]
[359867425,1746387040879,-380.01635004,0.00019994,2]
[359867426,1746387040888,-450.0,0.00019994,2]
[359867427,1746387040898,-450.0,0.00019995,2]
[359867428,1746387040907,-450.0,0.00019995,2]
[359867429,1746387040916,-450.0,0.00019995,2]
[359867430,1746387040926,-450.0,0.00019995,2]
[359867431,1746387040935,-450.0,0.00019995,2]
[359867432,1746387040945,-450.0,0.00019995,2]
[359867433,1746387040955,-450.0,0.00019995,2]
[359867434,1746387040964,-450.0,0.00019995,2]
[359867435,1746387040974,-450.0,0.00019995,2]
[359867436,1746387040983,-450.0,0.00019995,2]
[359867437,1746387040992,-450.0,0.00019995,2]
[359867438,1746387041002,-450.0,0.00019995,2]
[359867439,1746387041012,-450.0,0.00019995,2]
[359867440,1746387041021,-450.0,0.00019995,2]
[359867441,1746387041031,-450.0,0.00019995,2]
[359867442,1746387041040,-450.0,0.00019995,2]
[359867443,1746387041050,-450.0,0.00019995,2]
[359867444,1746387041059,-450.0,0.00019995,2]
[359867445,1746387041069,-450.0,0.00019995,2]
[359867446,1746387041079,-450.0,0.00019995,2]
[359867447,1746387041089,-450.0,0.00019995,2]
[359867448,1746387041098,-450.0,0.00019995,2]
[359867449,1746387041107,-450.0,0.00019995,2]
[359867450,1746387041116,-450.0,0.00019995,2]
[359867451,1746387041125,-450.0,0.00019995,2]
[359867452,1746387041135,-450.0,0.00019995,2]
[359867453,1746387041146,-450.0,0.00019995,2]
[359867454,1746387041157,-450.0,0.00019995,2]
[359867455,1746387041166,-450.0,0.00019995,2]
[359867456,1746387041176,-450.0,0.00019995,2]
[359867457,1746387041185,-450.0,0.00019995,2]
[359867458,1746387041194,-450.0,0.00019995,2]
[359867459,1746387041204,-450.0,0.00019995,2]
[359867460,1746387041213,-450.0,0.00019995,2]
[359867461,1746387041223,-450.0,0.00019995,2]
[359867462,1746387041232,-450.0,0.00019995,2]
[359867463,1746387041243,-450.0,0.00019995,2]
[359867464,1746387041252,-450.0,0.00019995,2]
[359867465,1746387041263,-450.0,0.00019995,2]
[359867466,1746387041273,-450.0,0.00019995,2]
[359867467,1746387041283,-450.0,0.00019995,2]
[359867468,1746387041292,-450.0,0.00019995,2]
[359867469,1746387041301,-450.0,0.00019995,2]
[359867470,1746387041311,-450.0,0.00019995,2]
[359867471,1746387041320,-450.0,0.00019995,2]
[359867472,1746387041329,-450.0,0.00019995,2]
[359867473,1746387041338,-450.0,0.00019995,2]
[359867474,1746387041348,-450.0,0.00019995,2]
[359867475,1746387041357,-450.0,0.00019995,2]
[359867476,1746387041366,-450.0,0.00019995,2]
[359867477,1746387041376,-450.0,0.00019995,2]
[359867478,1746387041385,-450.0,0.00019995,2]
[359867479,1746387041395,-450.0,0.00019995,2]
[359867480,1746387041406,-450.0,0.00019995,2]
[359867481,1746387041416,-450.0,0.00019995,2]
[359867482,1746387041425,-450.0,0.00019995,2]
[359867483,1746387041435,-450.0,0.00019995,2]
[359867484,1746387041444,-450.0,0.00019995,2]
[359867485,1746387041453,-450.0,0.00019995,2]
[359867486,1746387041463,-450.0,0.00019995,2]
[359867487,1746387041472,-450.0,0.00019995,2]
[359867488,1746387041481,-450.0,0.00019995,2]
[359867489,1746387041490,-450.0,0.00019995,2]
[359867490,1746387041499,-450.0,0.00019995,2]
[359867491,1746387041509,-450.0,0.00019995,2]
[359867492,1746387041519,-450.0,0.00019995,2]
[359867493,1746387041528,-590.6,0.00019995,2]
[359867494,1746387041537,-450.0,0.00019995,2]
[359867495,1746387041547,-450.0,0.00019995,2]
[359867496,1746387041556,-12173.31,0.00019995,2]
[359867497,1746387041566,-450.0,0.00019995,2]
[359867498,1746387041575,-895.44,0.00019995,2]
[359867499,1746387041585,-210.77940542,0.00019995,2]
[359867500,1746387041594,-631.28,0.00019995,2]
[359867501,1746387041604,-450.0,0.00019995,2]
[359867502,1746387041613,-450.0,0.00019995,2]
[359867503,1746387041623,-450.0,0.00019995,2]